Cogmind - Beta 15 @@@ ROGUE MODE // 2025.10.01 @ 21:45:07 Player: kway_side Result: Destroyed by Y-54 Guardian with Gatling Laser Performance ------------- Evolutions (3) 1500 Regions Visited (8) 1600 Robots Destroyed (28) 140 Value Destroyed (729) 729 Prototype IDs (7) 140 Alien Tech Used (0) 0 Bonus (177) 177 TOTAL SCORE: 4286 Bonus ------- Met Imprinter 300 Was Imprinted 300 Friendly Fire -423 Cogmind --------- Core Integrity 0/700 Matter 197/300 Energy 24/100 System Corruption 0% Temperature Cool (18) Movement Core (700) Ox13 Location -6/Proximity Caves Parts ------- > --- POWER (1) -------- (None) > --- PROPULSION (5) --- (None) > --- UTILITY (4) ------ Medium Storage Unit Advanced Visual Processing Unit Bomb Factory No. 2 > --- WEAPON (3) ------- Mini Grenade Launcher > --- INVENTORY (10) --- Transmission Jammer Improved Trap Extractor (0/6) Hacking Drone Bay (1/1) Power Maul Peak State ------------ > --- POWER ------------ Ion Engine > --- PROPULSION ------- Cesium-ion Thruster Cesium-ion Thruster Cesium-ion Thruster > --- UTILITY ---------- Medium Storage Unit Weight Redist. System Advanced Visual Processing Unit Improved Sensor Array > --- WEAPON ----------- Guided Missile Launcher Power Maul > --- INVENTORY -------- Heavy Ion Engine Small Storage Unit Transmission Jammer Improved Trap Extractor Recalibrator Hacking Drone Bay Assault Rifle Minigun Mini Grenade Launcher CR-A16's Pointy Stick [Rating: 36] Favorites ----------- Power Ion Engine Engine Ion Engine Propulsion Cesium-ion Thruster Treads Light Treads Leg Aluminum Leg Flight Unit Cesium-ion Thruster Utility Core Shielding Device Weight Redist. System Storage Small Storage Unit Processor Advanced Visual Processing Unit Protection Core Shielding Weapon Improved Light Cannon Energy Gun EM Pulse Gun Energy Cannon Advanced Beam Cannon Ballistic Gun Assault Rifle Ballistic Cannon Improved Light Cannon Launcher Mini Grenade Launcher Special Weapon Mining Laser Impact Weapon Power Maul Build | -11 -10 -9 -8 -7 -7 -7 -7 -6 ------- Run | Yrd Mat Mat Mat Fac Low Low Zio Pro Slots Evolved 6 | . . 2 2 2 . . . . Power . | . . . . . . . . . Propulsion 3 | . . 1 1 1 . . . . Utility 2 | . . . 1 1 . . . . Weapon 1 | . . 1 . . . . . . Parts Attached 46 | . 9 8 9 10 1 . 6 3 Power 5 | . 1 2 . 1 . . . 1 Engine 5 | . 1 2 . 1 . . . 1 Core . | . . . . . . . . . Reactor . | . . . . . . . . . Propulsion 9 | . 2 2 4 . . . . 1 Treads 4 | . 1 2 . . . . . 1 Leg 1 | . 1 . . . . . . . Wheel . | . . . . . . . . . Hover . | . . . . . . . . . Flight 4 | . . . 4 . . . . . Utility 17 | . 2 1 3 6 1 . 4 . Device 9 | . . . 1 5 1 . 2 . Storage 3 | . 1 . 1 . . . 1 . Processor 2 | . . . . 1 . . 1 . Hackware . | . . . . . . . . . Protection 3 | . 1 1 1 . . . . . Artifact . | . . . . . . . . . Weapon 15 | . 4 3 2 3 . . 2 1 Energy Gun . | . . . . . . . . . Energy Cannon 1 | . . 1 . . . . . . Ballistic Gun 3 | . . . . 3 . . . . Ballistic Cannon 3 | . 2 1 . . . . . . Launcher 5 | . 1 1 . . . . 2 1 Special Weapon 1 | . 1 . . . . . . . Impact Weapon 2 | . . . 2 . . . . . Slashing Weapon . | . . . . . . . . . Piercing Weapon . | . . . . . . . . . Special Melee Weapon . | . . . . . . . . . Unidentified Prototypes 5 | . . 2 . . . . 3 . Parts Lost 11 | . . 1 1 1 . . . 8 Power 3 | . . 1 . . . . . 2 Propulsion 4 | . . . 1 . . . . 3 Utility 2 | . . . . . . . . 2 Weapon 2 | . . . . 1 . . . 1 Highest Loss Streak 6 | . . 1 1 1 . . . 6 To Critical Strikes . | . . . . . . . . . Average Backups 9 | . 8 13 8 7 8 8 9 7 Power 1 | . 1 1 1 1 1 1 1 . Propulsion 1 | . 2 2 . . . . . . Utility 2 | . . 2 . 3 4 4 4 4 Weapon 4 | . 5 6 6 3 3 3 3 1 Tool/Special . | . . . . . . . . . Unused Backups 18 | . 6 5 2 2 . . 2 1 Power 1 | . 1 . . . . . . . Propulsion 5 | . 3 2 . . . . . . Utility 5 | . 1 1 1 1 . . . 1 Weapon 6 | . 1 1 1 1 . . 2 . Tool/Special 1 | . . 1 . . . . . . Average Slot Usage (%) 81 | . 95 98 76 66 69 69 68 45 Engine 9 | . 14 10 9 6 7 7 7 3 Treads 8 | . 1 32 2 . . . . . Leg 6 | . 26 . . . . . . . Flight 11 | . . . 33 23 23 23 23 6 Device 6 | . . . 3 8 15 15 14 11 Storage 9 | . 14 11 9 7 7 7 7 7 Processor 3 | . . . . 6 7 7 7 7 Protection 6 | . 9 11 9 5 . . . . Ballistic Gun 2 | . 3 . . 5 7 7 . . Ballistic Cannon 12 | . 19 31 6 . . . . . Impact Weapon 1 | . . . 3 . . . 6 1 Peak Build Rating 36 | . 10 19 30 26 25 24 36 28 Average Rating 18 | . 8 15 21 22 24 24 26 18 On Entrance 17 | 6 6 10 19 19 24 24 24 27 Naked Turns . | . . . . . . . . . Heaviest Build 51 | 12 34 48 40 15 16 14 19 51 Greatest Support 63 | 20 20 63 20 21 21 21 21 21 Greatest Overweight (x) 13 | . 1 1 1 . . . 1 13 Average Overweight (x) . | . . . . . . . . . Largest Inventory Capacity 15 | . 15 15 15 8 8 8 10 10 Average Capacity 11 | . 12 15 8 8 8 8 9 10 Most Carried 15 | . 12 15 15 8 8 8 10 10 Average Carried 9 | . 8 13 8 7 8 8 9 7 Final Capacity 15 | 8 15 15 8 8 8 8 10 10 Final Carried 14 | 6 11 14 8 8 8 8 10 4 Class Distribution -------------------- 47% | Sprinter 29% | Mutant 23% | Tank Dominant Class ---------------- Mutant | -10/Materials Tank | -9/Materials Sprinter | -8/Materials Sprinter | -7/Factory Sprinter | -7/Lower Caves Sprinter | -7/Lower Caves Sprinter | -7/Zion Mutant | -6/Proximity Caves Resources | -11 -10 -9 -8 -7 -7 -7 -7 -6 ----------- Run | Yrd Mat Mat Mat Fac Low Low Zio Pro Matter Collected 1147 | 200 88 324 22 43 318 . 86 66 Remotely . | . . . . . . . . . Salvage Created 683 | . 151 223 22 43 . . . 244 Parts 32 | . 12 14 . 4 . . . 2 Haulers Intercepted 2 | . 1 . . 1 . . . . Recyclers Shooed . | . . . . . . . . . Parts Field Recycled . | . . . . . . . . . Retrieved Matter . | . . . . . . . . . Parts Self-Destructed 1 | . . . . . . . . 1 Prevented 5 | . . . . . 5 . . . Kills | -11 -10 -9 -8 -7 -7 -7 -7 -6 ------- Run | Yrd Mat Mat Mat Fac Low Low Zio Pro Combat Hostiles Destroyed 20 | . 6 10 . . . . . 4 Cannons 9 | . 2 7 . . . . . . AOE 11 | . 4 3 . . . . . 4 Classes Destroyed 8 | . 4 3 . . . . . 1 Worker 1 | . . 1 . . . . . . Hauler 2 | . 1 . . 1 . . . . Watcher 3 | . 1 1 1 . . . . . Swarmer 8 | . 3 4 . . . . . 1 Grunt 9 | . 3 3 . . . . . 3 Duelist 1 | . . 1 . . . . . . Sentry 2 | . . 2 . . . . . . Mutant 2 | . . . . . . . . 2 Best Kill Streak 4 | . 4 4 1 1 . . . 4 Combat Bots Only 4 | . 3 4 . . . . . 4 Max Kills in Single Turn 3 | . 2 2 1 1 . . . 3 Gunslinging . | . . . . . . . . . Exploded 3 | . 2 2 . . . . . 3 Melee . | . . . . . . . . . Uniques/NPCs Destroyed . | . . . . . . . . . Combat | -11 -10 -9 -8 -7 -7 -7 -7 -6 -------- Run | Yrd Mat Mat Mat Fac Low Low Zio Pro Hostile Shots Fired 315 | . 32 49 11 32 18 1 . 172 Missed 133 | . 14 15 6 21 11 . . 66 Hits 182 | . 18 34 5 11 7 1 . 106 Melee 11 | . . . . . . . . 11 Projectile 171 | . 18 34 5 11 7 1 . 95 Critical Strikes 5 | . . . 1 . . . . 4 Actively Blocked 1 | . . . 1 . . . . . Damage Taken 2296 | . 213 485 72 118 65 18 . 1325 Core 847 | . 61 45 36 47 32 . . 626 Absorbed by Shields 17 | . . . . 17 . . . . Redirected to Shielding 28 | . 2 10 8 8 . . . . Core Remaining (%) 89 | 100 75 88 93 . . . . . Volleys Fired 53 | . 16 24 . 4 . . . 9 Largest 3 | . 2 3 . 1 . . . 2 Hottest 134 | . 100 134 . 100 . . . 45 Shots Fired 98 | . 21 60 . 4 . . . 13 Gun 10 | . . . . 2 . . . 8 Cannon 66 | . 12 54 . . . . . . Launcher 13 | . 4 4 . . . . . 5 Special 9 | . 5 2 . 2 . . . . Kinetic 74 | . 12 52 . 2 . . . 8 Thermal 11 | . 5 4 . 2 . . . . Explosive 13 | . 4 4 . . . . . 5 Electromagnetic . | . . . . . . . . . Robot Hit Streak 8 | . 7 8 . 5 . . . 6 Robot Miss Streak 3 | . 3 2 . 1 . . . 1 Penetration Max . | . . . . . . . . . Secondary Targets . | . . . . . . . . . Shots Hit Robots 52 | . 9 33 1 2 . . . 7 Core Hits 42 | . 10 16 . 2 . . . 14 Critical Kills . | . . . . . . . . . Critical Parts Destroyed 1 | . . . 1 . . . . . Critical Strikes 2 | . . 1 1 . . . . . Blast 1 | . . 1 . . . . . . Smash 1 | . . . 1 . . . . . Melee Attacks 2 | . . . 1 . . . 1 . Impact 2 | . . . 1 . . . 1 . Slashing . | . . . . . . . . . Piercing . | . . . . . . . . . Sneak Attacks . | . . . . . . . . . Combat Hostiles . | . . . . . . . . . Follow-up Attacks . | . . . . . . . . . Damage Inflicted 2122 | . 445 927 43 30 . . . 677 Guns 129 | . . . . 30 . . . 99 Cannons 812 | . 160 652 . . . . . . Explosions 1121 | . 279 264 . . . . . 578 Melee 43 | . . . 43 . . . . . Ramming 17 | . 6 11 . . . . . . Kinetic 921 | . 160 632 . 30 . . . 99 Thermal 20 | . . 20 . . . . . . Explosive 1121 | . 279 264 . . . . . 578 Electromagnetic . | . . . . . . . . . Impact 43 | . . . 43 . . . . . Slashing . | . . . . . . . . . Piercing . | . . . . . . . . . Highest Corruption 4 | . 1 . . 4 . . . . Average Corruption 1 | . 1 . . 2 . . . . Corruption Purged 4 | . . . . 4 . . . . Corruption Blocked . | . . . . . . . . . Effects 5 | . 2 . . 3 . . . . Message Errors 1 | . . . . 1 . . . . Energy Discharges 1 | . 1 . . . . . . . Data Loss (minor) 2 | . . . . 2 . . . . Data Loss (major) 1 | . 1 . . . . . . . Overload Shots . | . . . . . . . . . Overflow Damage 97 | . 5 49 43 . . . . . Projectiles 49 | . . 49 . . . . . . Explosions 5 | . 5 . . . . . . . Melee 43 | . . . 43 . . . . . Knockbacks 9 | . 2 6 1 . . . . . Impact 2 | . . 1 1 . . . . . Kinetic 7 | . 2 5 . . . . . . Secondary . | . . . . . . . . . Self-Inflicted Damage 140 | . 45 53 . . . . . 42 Shots 6 | . 3 2 . . . . . 1 Rammed 3 | . . 3 . . . . . . Targets Rammed 5 | . 2 3 . . . . . . Kicked 2 | . 2 . . . . . . . Crushed . | . . . . . . . . . Highest Temperature 223 | . 40 223 4 13 . . . 7 Average Temperature 61 | . 14 84 4 7 . . . 5 Received Heat Transfer 501 | . 27 132 27 45 30 . . 240 Siege Activations . | . . . . . . . . . Martial Activations . | . . . . . . . . . Shielding Activations . | . . . . . . . . . Robots Disrupted . | . . . . . . . . . Combat Hostiles . | . . . . . . . . . Robots Corrupted 1 | . . . 1 . . . . . Combat Hostiles . | . . . . . . . . . Parts Fried . | . . . . . . . . . Impact Corruptions 2 | . . . 2 . . . . . Robots Melted . | . . . . . . . . . Combat Hostiles . | . . . . . . . . . Parts Melted . | . . . . . . . . . Heat Transferred 37 | . . 37 . . . . . . Parts Sabotaged . | . . . . . . . . . Parts Stolen . | . . . . . . . . . Parts Stripped . | . . . . . . . . . Power Chain Reactions . | . . . . . . . . . Alert | -11 -10 -9 -8 -7 -7 -7 -7 -6 ------- Run | Yrd Mat Mat Mat Fac Low Low Zio Pro Maximum Alert Level . | . . . . . . . . . Low Security (%) 100 | . 100 100 100 100 . . . . Level 1 . | . . . . . . . . . Level 2 . | . . . . . . . . . Level 3 . | . . . . . . . . . Level 4 . | . . . . . . . . . Level 5 . | . . . . . . . . . High Security . | . . . . . . . . . Max Security . | . . . . . . . . . Peak Influence 150 | . 150 83 62 63 . . . . Initial 29 | . . 13 29 23 . . . . Average 29 | . 46 22 23 16 . . . . Influence Increases 896 | . 284 308 83 127 . . . 94 Destroy 0b10 Robot/C 400 | . 120 200 . . . . . 80 Destroy 0b10 Robot/NC 30 | . 10 10 5 5 . . . . Destroy Leader 90 | . 34 52 2 2 . . . . Allied During Kill 14 | . . . . . . . . 14 Successful Hack 16 | . . . 16 . . . . . Disable Machine 60 | . 45 15 . . . . . . Destroy Structure 61 | . 30 31 . . . . . . Partial Spotted 30 | . . . 15 15 . . . . Lose Combat Pursuer 195 | . 45 . 45 105 . . . . Influence Decreases 896 | . 251 270 102 142 37 . . 94 Entered New Map 106 | . . 20 42 29 15 . . . Time Decay 720 | . 251 240 50 113 22 . . 44 Lost Part 70 | . . 10 10 . . . . 50 Squads Dispatched 5 | . 1 . . 4 . . . . Investigation 2 | . . . . 2 . . . . Extermination 1 | . . . . 1 . . . . Reinforcement 2 | . 1 . . 1 . . . . Assault . | . . . . . . . . . Garrison . | . . . . . . . . . Intercept . | . . . . . . . . . Searches Triggered . | . . . . . . . . . Construction Impeded . | . . . . . . . . . Haulers Reinforced . | . . . . . . . . . Active Scanning Responses . | . . . . . . . . . Cargo Convoy Interrupts . | . . . . . . . . . Stealth | -11 -10 -9 -8 -7 -7 -7 -7 -6 --------- Run | Yrd Mat Mat Mat Fac Low Low Zio Pro Distress Signals 2 | . 1 . 1 . . . . . Communications Jammed . | . . . . . . . . . Distress Signals . | . . . . . . . . . Times Spotted 58 | . 9 16 10 12 1 1 . 9 Peak Tracking Total 7 | . 4 3 6 5 1 1 . 7 Tactical Retreats 5 | . 1 . 1 3 . . . . Traps | -11 -10 -9 -8 -7 -7 -7 -7 -6 ------- Run | Yrd Mat Mat Mat Fac Low Low Zio Pro Traps Triggered 3 | . 1 . . 2 . . . . Indirectly . | . . . . . . . . . Trap Hack Attempts . | . . . . . . . . . Triggered . | . . . . . . . . . Disarmed . | . . . . . . . . . Reprogrammed . | . . . . . . . . . Reused . | . . . . . . . . . Traps Extracted . | . . . . . . . . . Installed . | . . . . . . . . . Triggered . | . . . . . . . . . Machines | -11 -10 -9 -8 -7 -7 -7 -7 -6 ---------- Run | Yrd Mat Mat Mat Fac Low Low Zio Pro Machines Disabled 4 | . 3 1 . . . . . . Max in Single Turn 1 | . 1 1 . . . . . . Machines Repaired . | . . . . . . . . . Machines Dismantled . | . . . . . . . . . Machines Sabotaged . | . . . . . . . . . Overloaded Fab Kills . | . . . . . . . . . Hacking | -11 -10 -9 -8 -7 -7 -7 -7 -6 --------- Run | Yrd Mat Mat Mat Fac Low Low Zio Pro Machines Accessed 13 | . 2 4 2 4 1 . . . Terminals 6 | . 1 2 2 1 . . . . Fabricators 2 | . . . . 2 . . . . Repair Stations . | . . . . . . . . . Recycling Units 2 | . 1 1 . . . . . . Scanalyzers 2 | . . 1 . 1 . . . . Garrison Access . | . . . . . . . . . Total Hacks 42 | . 5 14 6 16 1 . . . Successful 23 | . 2 8 4 8 1 . . . Failed 19 | . 3 6 2 8 . . . . Catastrophic 1 | . . 1 . . . . . . Database Lockouts . | . . . . . . . . . Manual 5 | . . 1 1 1 . . 2 . Terminals 13 | . 3 3 6 1 . . . . Fabricators 10 | . . . . 10 . . . . Repair Stations . | . . . . . . . . . Recycling Units 10 | . 2 8 . . . . . . Scanalyzers 8 | . . 3 . 5 . . . . Garrison Access . | . . . . . . . . . Terminal Hacks 6 | . . . 4 1 1 . . . Record 1 | . . . 1 . . . . . Prototype ID Bank 1 | . . . 1 . . . . . Open Door 1 | . . . . . 1 . . . Open DSF 1 | . . . . 1 . . . . Repair Station Index 1 | . . . 1 . . . . . Maintenance Status 1 | . . . 1 . . . . . Fabricator Hacks 3 | . . . . 3 . . . . Load Schematic 3 | . . . . 3 . . . . Repair Station Hacks . | . . . . . . . . . Recycling Unit Hacks 8 | . 2 6 . . . . . . Process 2 | . 1 1 . . . . . . Report Inventory 3 | . 1 2 . . . . . . Retrieve Matter 2 | . . 2 . . . . . . Retrieve Components 1 | . . 1 . . . . . . Scanalyzer 6 | . . 2 . 4 . . . . Insert Component 3 | . . 1 . 2 . . . . Analyze 3 | . . 1 . 2 . . . . Garrison Access Hacks . | . . . . . . . . . Unauthorized Hacks . | . . . . . . . . . Terminals . | . . . . . . . . . Fabricators . | . . . . . . . . . Repair Stations . | . . . . . . . . . Recycling Units . | . . . . . . . . . Scanalyzers . | . . . . . . . . . Garrison Access . | . . . . . . . . . Data Cores Recovered . | . . . . . . . . . Used . | . . . . . . . . . Hacking Detections 10 | . 1 3 2 4 . . . . Full Trace Events 2 | . . . . 2 . . . . Feedback Events 1 | . . . . 1 . . . . Corruption 1 | . . . . 1 . . . . Feedback Blocked . | . . . . . . . . . Robot Schematics Acquired 4 | . . . . . . . 4 . Robots Built . | . . . . . . . . . Authchips . | . . . . . . . . . Time . | . . . . . . . . . Total Robot Build Rating . | . . . . . . . . . Part Schematics Acquired 17 | . . 1 . 2 . . 14 . Parts Built . | . . . . . . . . . Authchips . | . . . . . . . . . Time . | . . . . . . . . . Total Part Build Rating . | . . . . . . . . . Parts Repaired . | . . . . . . . . . Time . | . . . . . . . . . Parts Recycled . | . . . . . . . . . Recycled Matter 68 | . . 68 . . . . . . Retrieved Matter 68 | . . 68 . . . . . . Retrieved Components 4 | . . 4 . . . . . . Parts Scanalyzed 3 | . . 1 . 2 . . . . Part Schematics Acquired 3 | . . 1 . 2 . . . . Parts Damaged . | . . . . . . . . . Bothacking | -11 -10 -9 -8 -7 -7 -7 -7 -6 ------------ Run | Yrd Mat Mat Mat Fac Low Low Zio Pro Used RIF Installer . | . . . . . . . . . Robots Hacked . | . . . . . . . . . Non-combat . | . . . . . . . . . Combat . | . . . . . . . . . Robot Hacks Applied . | . . . . . . . . . Relay Couplers Released . | . . . . . . . . . Fabnet Peak Effective % . | . . . . . . . . . Robots Rewired . | . . . . . . . . . Allies Hacked . | . . . . . . . . . Hacks Repelled . | . . . . . . . . . Allies | -11 -10 -9 -8 -7 -7 -7 -7 -6 -------- Run | Yrd Mat Mat Mat Fac Low Low Zio Pro Total Allies 4 | . . . . . . . 4 . Largest Group 4 | . . . . . . . 4 4 Highest-Rated Group 153 | . . . . . . . 153 153 Highest-Rated Ally 40 | . . . . . . . 40 40 Total Orders . | . . . . . . . . . Ally Attacks 6 | . . . . . . . . 6 Total Damage 148 | . . . . . . . . 148 Kills . | . . . . . . . . . Allies Corrupted . | . . . . . . . . . Allies Melted . | . . . . . . . . . Intel | -11 -10 -9 -8 -7 -7 -7 -7 -6 ------- Run | Yrd Mat Mat Mat Fac Low Low Zio Pro Active Infowar (turns) 1592 | . . . . 592 232 7 597 164 Optics 1592 | . . . . 592 232 7 597 164 Sensors 995 | . . . . 137 228 7 585 38 ECM 3 | . . . . . 3 . . . Robot Analysis Total . | . . . . . . . . . Derelict Logs Recovered 2 | . . . . . 1 . 1 . Drone Launches . | . . . . . . . . . Drone Recoveries . | . . . . . . . . . Exploration | -11 -10 -9 -8 -7 -7 -7 -7 -6 ------------- Run | Yrd Mat Mat Mat Fac Low Low Zio Pro Turns Passed 3316 | . 774 830 113 599 232 7 597 164 Spaces Moved 4540 | 1 423 391 302 1111 783 24 1345 160 Core 67 | . . . . . . . . 67 Treads 419 | . 32 385 . . . . . 2 Legs 398 | 1 391 6 . . . . . . Wheels . | . . . . . . . . . Hover . | . . . . . . . . . Flight 3656 | . . . 302 1111 783 24 1345 91 Fastest Speed 26 | 120 120 160 26 29 29 29 29 29 Average Speed 53 | 120 158 160 27 29 29 29 29 74 Slowest Speed 700 | 120 190 190 106 29 29 29 109 700 Overloaded Moves . | . . . . . . . . . Propulsion Burnouts . | . . . . . . . . . Robots Hopped 27 | . . . . 22 5 . . . Potential Cave-ins . | . . . . . . . . . Cave-ins Triggered . | . . . . . . . . . Exploration Rate (%) 37 | 2 43 29 27 19 91 10 93 26 Regions Visited 8 Branch Regions 4 Pre-discovered Areas 2 | . . . . . . . 2 . Known Exits Taken . | . . . . . . . . . Unknown Exits Taken 8 | 1 1 1 1 1 1 1 1 . Scrap Searched 7 | . . . . . 3 . 3 1 Spaces Dug 15 | . 13 2 . . . . . . Terrain Destroyed 90 | . 29 40 . . . . . 21 Melee . | . . . . . . . . . Projectile 10 | . 5 5 . . . . . . AOE 80 | . 24 35 . . . . . 21 Terrain Rammed . | . . . . . . . . . Walls Destroyed . | . . . . . . . . . Machines Disabled . | . . . . . . . . . Actions | -11 -10 -9 -8 -7 -7 -7 -7 -6 --------- Run | Yrd Mat Mat Mat Fac Low Low Zio Pro Total 5283 | . 495 541 333 1363 782 23 1548 198 Wait 537 | . 25 85 4 227 1 . 177 18 Move 4481 | . 422 390 301 1069 772 23 1344 160 Hop 24 | . . . . 19 5 . . . Pick Up 42 | . 9 13 3 11 . . 4 2 Fast Attach 18 | . 1 . 3 5 2 . 7 . Attach 30 | . 5 6 3 8 . . . 8 Detach 20 | . 3 3 7 5 . . 1 1 Swap 26 | . 6 10 4 2 . . 4 . Drop 45 | . 6 7 7 13 2 . 10 . Fire 53 | . 16 24 . 4 . . . 9 Melee 2 | . . . 1 . . . 1 . Ram . | . . . . . . . . . Kick 2 | . 2 . . . . . . . Crush 3 | . . 3 . . . . . . Escape Stasis . | . . . . . . . . . Rewire . | . . . . . . . . . Trap . | . . . . . . . . . Miscellaneous . | . . . . . . . . . Route ------- -11/Scrapyard -10/Materials -9/Materials -8/Materials -7/Factory (discovered 2 exits: [*Sto] / *Low) -7/Lower Caves -7/Lower Caves -7/Zion -6/Proximity Caves History --------- Turn | Location | Event 1 | -11/Scrapyard | Discovered new exit (range 0) 1 | -11/Scrapyard | Entered Materials 305 | -10/Materials | Build established: Mutant 307 | -10/Materials | Discovered new exit (range 8) 775 | -10/Materials | Entered another Materials area 775 | -9/Materials | Evolved 2 slots: Propulsion x1, Weapon x1 1132 | -9/Materials | Build established: Tank 1526 | -9/Materials | Discovered new exit (range 8) 1605 | -9/Materials | Entered another Materials area 1605 | -8/Materials | Evolved 2 slots: Propulsion x1, Utility x1 1713 | -8/Materials | Discovered new exit (range 10) 1718 | -8/Materials | Entered Factory 1718 | -7/Factory | Evolved 2 slots: Propulsion x1, Utility x1 1731 | -7/Factory | Discovered new exit (range 7) 1736 | -7/Factory | Discovered new exit (range 8) 1906 | -7/Factory | Build established: Sprinter 2317 | -7/Factory | Entered Lower Caves 2442 | -7/Lower Caves | Learned Factory interactive machine intel 2472 | -7/Lower Caves | Encountered a Warlord checkpoint 2544 | -7/Lower Caves | Discovered new exit (range 17) 2548 | -7/Lower Caves | Attracted the attention of an 0b10 checkpoint 2549 | -7/Lower Caves | Entered another Lower Caves area 2550 | -7/Lower Caves | Discovered new exit (range 17) 2556 | -7/Lower Caves | Entered Zion 2610 | -7/Zion | Discovered new exit (range 10) 2612 | -7/Zion | Found CR-A16's Pointy Stick 2636 | -7/Zion | Given the Hacking Drone Bay 2637 | -7/Zion | Found Prototype Device 2638 | -7/Zion | Identified Hacking Drone Bay 2673 | -7/Zion | Learned location of Quarantine (-3) 2704 | -7/Zion | Found Prototype Launcher 2704 | -7/Zion | Identified Gui. Missile Launcher 2707 | -7/Zion | Found Gui. Missile Launcher 2725 | -7/Zion | Learned location of Storage (-7) 2735 | -7/Zion | Found Prototype Device 2735 | -7/Zion | Identified Bomb Factory No. 2 2809 | -7/Zion | Met Imprinter 2816 | -7/Zion | Imprinted 2818 | -7/Zion | Declared Zion's savior 2930 | -7/Zion | Learned 4 Factory zone layouts 3153 | -7/Zion | Entered Proximity Caves 3153 | -6/Proximity Caves | Accompanied by 4 allies 3161 | -6/Proximity Caves | Attracted the attention of an 0b10 checkpoint 3219 | -6/Proximity Caves | Lost 4 allies 3232 | -6/Proximity Caves | Core integrity fell below 50% 3244 | -6/Proximity Caves | Lost 6 parts (1p3n1u1w) 3295 | -6/Proximity Caves | Spotted B-75 Beast 3306 | -6/Proximity Caves | Core integrity fell below 20% 3317 | -6/Proximity Caves | Destroyed by Y-54 Guardian with Gatling Laser Last Messages --------------- 03186_ S-27 Virus destroyed. 03187_ Cesium-ion Thruster destroyed. 03188_ SL-W5N(M) destroyed. 03190_ Carbon-fiber Leg fries itself beyond repair. 03191_ L-41 Fighter destroyed. 03191_ Imp. Sensor Array destroyed. 03202_ The unstable cave ceiling collapses. 03212_ Hvy. Ion Engine severed. 03213_ Assault Rifle destroyed. 03213_ Cesium-ion Thruster destroyed. 03216_ Minigun severed. 03225_ Acquired 26 matter. 03228_ Acquired Imp. Deuterium Engine. 03233_ Acquired 16 matter. 03238_ Acquired Arm. Treads. 03249_ Recalibrator destroyed. 03251_ The unstable cave ceiling collapses. 03293_ Weight Redist. System severed. 03305_ Imp. Deuterium Engine destroyed. 03307_ Arm. Treads severed. Map ----- +----------------------------------------------------+ | ?????? ?????????????????????????????? | | ??????# ?????????????????????????????? | | ??????# ?????????????????????????????? | | ####### ??????????????????????????????? | | #?????????????????????????????????? | | #?????????????????????????????????? | | #?????????????????????????????????? | | #?????????????????????????????????? | | # ## #?????????????????????????????????? | | ## ##????????????????????????#??????????????? | | ?# ##?????????????????????? #???????????? | | ### ##????????????????????? ????????????? | | ####### ##??????????????????? ????????????? | | ##???# #??????????????????? ####??????????? | | ##??# #?????????????????? ??????????? | | #?## ##?????????????????# ??????????? | | #### #?????????????????# BB ??????????? | | ###?# #???????????????## BB ????????????? | | #???# ##???????????### ; ?????? ??????? | | ????## #???????????#; ;????? ??????? | | ?????## ##??????##### ;;;#???? ????????? | | ??????## ##?????# #;#### #??????????? | | ???????# #????## ### ?????? | | ??????## #??###% ????? | | ?????## ##?## % = #????????? | | ?????# #### l@ ####???????????? | | ?????# Y ! ###??????????????? | | ?????##### ## ##????????????????? | | ?????????######## ####### #?????????????????? | | ????????????????# #?????? #?????????????????? | | ????????????????# #??????? ##?????????????????? | | ????????????????#####??????? #??????????????????? | | ????????????????????????????? ??????????????????? | | ????????????????????????????? ?????????????????? | | ?????????????????????????????? #????????????????? | | ?????????????????????????????? ????????????????? | | ??????????????????????????????? #???????????????? | | ??????????????????????????????? #???????????????? | | ???????????????????????????????? ???????????????? | | ???????????????????????????????? ??????????????? | | ????????????????????????????????? ??????????????? | | ????????????????????????????????? ??????????????? | | ?????????????????????????????????????????????????? | | ?????????????????????????????????????????????????? | | ?????????????????????????????????????????????????? | | ?????????????????????????????????????????????????? | | ?????????????????????????????????????????????????? | | ?????????????????????????????????????????????????? | | ?????????????????????????????????????????????????? | | ?????????????????????????????????????????????????? | +----------------------------------------------------+ Best States ------------- Heat Dissipation 34 Energy Generation 16 Energy Capacity 290 Matter Stores 300 Matter Capacity 300 Sight Range 20 Robot Scan Range 15 Terrain Scan Density 10 Additional Mass Support 6 Armor Coverage 225 Core Shielding 20 Evasion (%) 64 Recoil Reduction 3 Item Schematics ----------------- Lrg. Storage Unit | -9/Materials | Scanalyzed Cesium-ion Thruster | -7/Factory | Scanalyzed Mni. Grenade Launcher | -7/Factory | Scanalyzed Imp. Hacking Suite | -7/Zion | Archive Adv. Assault Cannon | -7/Zion | Archive Recalibrator | -7/Zion | Archive Proton Cannon | -7/Zion | Archive Imp. Plasma Cutter | -7/Zion | Archive Lrn. Missile Launcher | -7/Zion | Archive Weapon Cycler | -7/Zion | Archive Focal Shield | -7/Zion | Archive Transmission Jammer | -7/Zion | Archive Mass Driver | -7/Zion | Archive Component Analysis Suite | -7/Zion | Archive Energy Well | -7/Zion | Archive Gatling Laser | -7/Zion | Archive Adv. Heat Sink | -7/Zion | Archive Robot Schematics ------------------ P-60 Hacker | -7/Zion | Archive Y-72 Warden | -7/Zion | Archive A-02 Transporter | -7/Zion | Archive T-07 Excavator | -7/Zion | Archive Fabricated ------------ Nothing Repaired ---------- Nothing Alien Tech Used ----------------- None Achievements -------------- None Challenges ------------ None Game ------ Seed CommCoolantChargecaster Manual? 0 Play Time 01:47:10 Cumulative 132.1 hours Start 2025.05.27 @ 11:59:58 End 2025.10.01 @ 21:45:07 Sessions 7 Manual Loads 0 Difficulty Rogue Special Mode None Game No. 125 Rogue 125 Adventurer 0 Explorer 0 Win Type - Total 0 Types 0/0/0/0/0/0/0/0/0/0 Lore% 18 Gallery% 34 Achievement% 35 Wizard Run 0 Options --------- Layout 0 ASCII 0 Keyboard 0 Movement Mouse Keybinds 0 Fullscreen 1 Font 18/SmallcapsGlow Map View 76x50 Zoom Use 0% Tactical HUD 1 Map Filters NONE Filters NONE Steam 1 RUN: 92301cd5-2334-4c6f-8f77-d904fb26d720